[Event "Cellavision Cup 2019"]
[Site "Lund"]
[Date "2019.08.04"]
[Round "7.10"]
[White "Jakobsen, Peter"]
[Black "Kristiansen, Jens"]
[Result "0-1"]
[ECO "B22"]
[WhiteElo "2250"]
[BlackElo "2400"]
[Annotator "NA"]
[PlyCount "114"]
[EventDate "2019.08.02"]
[EventType "swiss"]
[EventCountry "SWE"]
[SourceTitle "playchess.com"]
[Source "ChessBase"]
[SourceQuality "1"]
[TimeControl "900+5"]

1. e4 {[%emt 0:00:00]} c5 {[%emt 0:00:00]} 2. c3 {[%emt 0:00:00]} d6 {[%emt 0:00:00]} 3. d4 {[%emt 0:00:00]} Nf6 {[%emt 0:00:00]} 4. Bd3 {[%emt 0:00:00]} cxd4 {[%emt 0:00:00]} 5. cxd4 {[%emt 0:00:00]} g6 {[%emt 0:00:00]} 6. Nf3 {[%emt 0:00:00]} Bg7 {[%emt 0:00:00]} 7. O-O {[%emt 0:00:00]} O-O {[%emt 0:00:00]} 8. h3 {[%emt 0:00:00]} Nc6 {[%emt 0:00:00]} 9. Nc3 {[%emt 0:00:00]} e5 {[%emt 0:00:00]} 10. dxe5 {[%emt 0:00:00]} dxe5 {[%emt 0:00:00]} 11. Bc4 {[%emt 0:00:00]} Qa5 {[%emt 0:00:00]} 12. Bd2 {[%emt 0:00:00]} Qb4 {[%emt 0:00:00]} 13. b3 {[%emt 0:00:00]} h6 {[%emt 0:00:00]} 14. a3 {[%emt 0:00:00]} Qe7 {[%emt 0:00:00]} 15. b4 {[%emt 0:00:00]} Be6 {[%emt 0:00:00]} 16. Bxe6 {[%emt 0:00:00]} Qxe6 {[%emt 0:00:00]} 17. Re1 {[%emt 0:00:00]} Rfd8 {[%emt 0:00:00]} 18. Qc1 {[%emt 0:00:00]} Nd4 {[%emt 0:00:00]} 19. Nxd4 {[%emt 0:00:00]} exd4 {[%emt 0:00:00]} 20. Nd5 {[%emt 0:00:00]} Rac8 {[%emt 0:00:00]} 21. Nxf6+ {[%emt 0:00:00]} Bxf6 {[%emt 0:00:00]} 22. Qd1 {[%emt 0:00:00]} Bg7 {[%emt 0:00:00]} 23. Rc1 {[%emt 0:00:00]} Qa2 {[%emt 0:00:00]} 24. a4 {[%emt 0:00:00]} d3 {[%emt 0:00:00]} 25. Rxc8 {[%emt 0:00:00]} Rxc8 {[%emt 0:00:00]} 26. Be3 {[%emt 0:05:19]} Bc3 {[%emt 0:00:00]} 27. Rf1 {[%emt 0:00:00]} d2 {[%emt 0:00:00]} 28. Qg4 {[%emt 0:01:33]} Rd8 {[%emt 0:00:00]} 29. Bxh6 {[%emt 0:00:46]} Qxa4 {[%emt 0:00:00]} 30. Rd1 {[%emt 0:00:00]} Qxb4 {[%emt 0:00:00]} 31. Bg5 {[%emt 0:00:00]} Rd4 {[%emt 0:00:00]} 32. Bf6 {[%emt 0:01:25]} Rc4 {[%emt 0:00:00]} 33. Bxc3 {[%emt 0:00:16]} Qxc3 {[%emt 0:00:00]} 34. Qg5 {[%emt 0:01:19]} Rxe4 {[%emt 0:00:00]} 35. Qd8+ {[%emt 0:00:53]} Kg7 {[%emt 0:00:00]} 36. Rxd2 {[%emt 0:00:00]} Re1+ {[%emt 0:00:00]} 37. Kh2 {[%emt 0:00:00]} Qe5+ {[%emt 0:00:00]} 38. g3 {[%emt 0:00:00]} Qe4 {[%emt 0:00:00]} 39. Qd4+ {[%emt 0:00:00]} Qxd4 40. Rxd4 {[%emt 0:00:00]} a5 {[%emt 0:00:00]} 41. Ra4 {[%emt 0:00:00]} b6 {[%emt 0:00:00]} 42. Kg2 {[%emt 0:00:00]} Rb1 {[%emt 0:00:00]} 43. Kf3 {[%emt 0:00:00]} Kf6 {[%emt 0:00:00]} 44. Ke3 {[%emt 0:00:00]} Rb3+ {[%emt 0:00:00]} 45. Ke2 {[%emt 0:00:00]} Ke5 {[%emt 0:00:00]} 46. h4 {[%emt 0:00:00]} f5 {[%emt 0:02:20]} 47. f3 {[%emt 0:00:00]} Rb4 {[%emt 0:05:03]} 48. Ra1 {[%emt 0:00:00]} a4 {[%emt 0:00:00]} 49. Ke3 {[%emt 0:02:37]} Rb3+ {[%emt 0:00:16]} 50. Ke2 {[%emt 0:00:00]} a3 {[%emt 0:00:00]} 51. g4 {[%emt 0:00:00]} b5 {[%emt 0:02:41]} 52. h5 {[%emt 0:00:00]} fxg4 {[%emt 0:00:22]} 53. fxg4 {[%emt 0:00:00]} gxh5 {[%emt 0:00:00]} 54. gxh5 {[%emt 0:00:00]} b4 {[%emt 0:02:20]} 55. h6 {[%emt 0:04:07]} Rh3 {[%emt 0:00:17]} 56. Kd2 {[%emt 0:00:00]} Kd4 {[%emt 0:00:19]} 57. Kc2 {[%emt 0:00:00]} b3+ {[%emt 0:00:09]} 0-1

[Event "Cellavision Cup 2019"]
[Site "Lund"]
[Date "2019.08.04"]
[Round "7.11"]
[White "Silseth, Simon"]
[Black "Jepson, Christian"]
[Result "1-0"]
[ECO "D51"]
[WhiteElo "2264"]
[BlackElo "2391"]
[Annotator "NA"]
[PlyCount "61"]
[EventDate "2019.08.02"]
[EventType "swiss"]
[EventCountry "SWE"]
[SourceTitle "playchess.com"]
[Source "ChessBase"]
[SourceQuality "1"]
[TimeControl "900+5"]

1. c4 {[%emt 0:00:00]} e6 {[%emt 0:00:00]} 2. d4 {[%emt 0:00:00]} d5 {[%emt 0:00:00]} 3. Nc3 {[%emt 0:00:00]} Nf6 {[%emt 0:00:00]} 4. Bg5 {[%emt 0:00:00]} Nbd7 {[%emt 0:00:00]} 5. e3 {[%emt 0:00:00]} c6 {[%emt 0:00:00]} 6. cxd5 {[%emt 0:00:00]} exd5 {[%emt 0:00:00]} 7. Bd3 {[%emt 0:00:00]} Be7 {[%emt 0:00:00]} 8. Qc2 {[%emt 0:00:00]} Nh5 {[%emt 0:00:00]} 9. Bxe7 {[%emt 0:00:00]} Qxe7 {[%emt 0:00:00]} 10. Nf3 {[%emt 0:00:00]} Nf4 {[%emt 0:00:00]} 11. O-O {[%emt 0:00:00]} Nxd3 {[%emt 0:00:00]} 12. Qxd3 {[%emt 0:00:00]} O-O {[%emt 0:00:00]} 13. a3 {[%emt 0:00:00]} Nb6 {[%emt 0:00:00]} 14. Nd2 {[%emt 0:00:00]} Be6 {[%emt 0:00:00]} 15. b4 {[%emt 0:00:00]} a6 {[%emt 0:00:00]} 16. a4 {[%emt 0:00:00]} Rfe8 {[%emt 0:00:00]} 17. b5 {[%emt 0:00:00]} cxb5 {[%emt 0:00:00]} 18. axb5 {[%emt 0:00:00]} a5 {[%emt 0:00:00]} 19. Nb3 {[%emt 0:00:00]} Nc4 {[%emt 0:00:00]} 20. b6 {[%emt 0:00:00]} Rec8 {[%emt 0:01:55]} 21. Nc5 {[%emt 0:00:00]} Rc6 {[%emt 0:02:20]} 22. Rfe1 {[%emt 0:00:00]} Rxb6 {[%emt 0:04:45]} 23. e4 {[%emt 0:00:00]} dxe4 {[%emt 0:00:31]} 24. Rxe4 {[%emt 0:00:00]} Nd6 {[%emt 0:00:17]} 25. Nd5 {[%emt 0:00:00]} Qd8 {[%emt 0:01:19]} 26. Nxe6 {[%emt 0:00:00]} fxe6 {[%emt 0:00:00]} 27. Nxb6 {[%emt 0:00:00]} Qxb6 {[%emt 0:00:06]} 28. Rxe6 {[%emt 0:00:00]} Qc7 {[%emt 0:03:49]} 29. Qg3 {[%emt 0:00:00]} Rd8 {[%emt 0:00:58]} 30. Qe5 {[%emt 0:00:00]} Qc3 {[%emt 0:00:56]} 31. Rf1 {[%emt 0:00:00]} 1-0

[Event "Cellavision Cup 2019"]
[Site "Lund"]
[Date "2019.08.04"]
[Round "7.12"]
[White "Brondt, Nicolai Kvist"]
[Black "Smith, Axel"]
[Result "0-1"]
[ECO "A50"]
[WhiteElo "2288"]
[BlackElo "2469"]
[Annotator "ChessBase"]
[PlyCount "110"]
[EventDate "2019.08.02"]
[EventType "swiss"]
[EventCountry "SWE"]
[SourceTitle "playchess.com"]
[Source "ChessBase"]
[SourceQuality "1"]
[TimeControl "900+5"]

1. d4 {[%emt 0:00:00]} Nf6 {[%emt 0:00:00]} 2. c4 {[%emt 0:00:00]} a6 {[%emt 0:00:00]} 3. Nc3 {[%emt 0:00:00]} c5 {[%emt 0:00:00]} 4. Nf3 {[%emt 0:00:00]} e6 {[%emt 0:00:00]} 5. Bg5 {[%emt 0:00:00]} cxd4 {[%emt 0:00:00]} 6. Nxd4 {[%emt 0:00:00]} Be7 {[%emt 0:00:00]} 7. e3 {[%emt 0:00:00]} b6 {[%emt 0:00:00]} 8. Be2 {[%emt 0:00:00]} Bb7 {[%emt 0:00:00]} 9. O-O {[%emt 0:00:00]} O-O {[%emt 0:00:00]} 10. Rc1 {[%emt 0:00:00]} Qc7 {[%emt 0:00:00]} 11. Bf3 {[%emt 0:00:00]} Nc6 {[%emt 0:00:00]} 12. Nxc6 {[%emt 0:00:00]} dxc6 {[%emt 0:00:00]} 13. Qc2 {[%emt 0:00:00]} Ng4 {[%emt 0:00:00]} 14. Bf4 {[%emt 0:00:00]} Ne5 {[%emt 0:00:00]} 15. Bxe5 {[%emt 0:00:00]} Qxe5 {[%emt 0:00:00]} 16. Rfd1 {[%emt 0:00:00]} Qc7 {[%emt 0:00:00]} 17. Na4 {[%emt 0:00:00]} c5 {[%emt 0:00:00]} 18. Bxb7 {[%emt 0:00:00]} Qxb7 {[%emt 0:00:00]} 19. Qb3 {[%emt 0:00:00]} Qc6 {[%emt 0:00:00]} 20. Rd2 {[%emt 0:00:00]} Rab8 {[%emt 0:01:29]} 21. Qc2 {[%emt 0:00:00]} g6 {[%emt 0:01:13]} 22. b3 {[%emt 0:00:00]} Rfd8 {[%emt 0:01:14]} 23. Rcd1 {[%emt 0:00:00]} Rxd2 {[%emt 0:01:03]} 24. Rxd2 {[%emt 0:00:00]} b5 {[%emt 0:00:00]} 25. Nb2 {[%emt 0:00:00]} Bf6 {[%emt 0:00:00]} 26. Nd3 {[%emt 0:00:00]} Rd8 {[%emt 0:00:00]} 27. Nb2 {[%emt 0:00:40]} Rxd2 {[%emt 0:00:30]} 28. Qxd2 {[%emt 0:00:00]} Bxb2 {[%emt 0:08:18]} 29. Qxb2 {[%emt 0:00:00]} Qe4 {[%emt 0:00:00]} 30. Qc1 {[%emt 0:03:36]} bxc4 {[%emt 0:00:00]} 31. bxc4 {[%emt 0:00:00]} h5 {[%emt 0:00:33]} 32. g3 {[%emt 0:00:50]} Qd3 {[%emt 0:00:29]} 33. h4 {[%emt 0:00:11]} a5 {[%emt 0:00:00]} 34. a3 {[%emt 0:05:30]} a4 {[%emt 0:00:00]} 35. Kg2 {[%emt 0:00:27]} Kh7 {[%emt 0:00:48]} 36. Kg1 {[%emt 0:00:00]} e5 {[%emt 0:00:34]} 37. Kg2 {[%emt 0:00:18]} Kg8 {[%emt 0:00:00]} 38. Kg1 {[%emt 0:00:30]} Kg7 {[%emt 0:00:00]} 39. Kg2 {[%emt 0:00:20]} Kh6 {[%emt 0:00:00]} 40. Kg1 {[%emt 0:00:00]} Kg7 {[%emt 0:00:00]} 41. Kg2 {[%emt 0:00:00]} Kf6 {[%emt 0:00:00]} 42. Kg1 {[%emt 0:00:55]} Kf5 {[%emt 0:00:00]} 43. Kh2 {[%emt 0:01:47]} Qe2 {[%emt 0:00:35]} 44. Kg2 {[%emt 0:01:31]} Kg4 {[%emt 0:00:00]} 45. Kg1 {[%emt 0:00:40]} Kf3 {[%emt 0:00:42]} 46. Qf1 {[%emt 0:00:20]} Qxf1+ {[%emt 0:00:00]} 47. Kxf1 {[%emt 0:00:00]} f6 {[%emt 0:00:11]} 48. Ke1 {[%emt 0:00:00]} g5 {[%emt 0:00:05]} 49. Kf1 {[%emt 0:00:00]} gxh4 {[%emt 0:00:00]} 50. gxh4 {[%emt 0:00:00]} e4 {[%emt 0:00:24]} 51. Ke1 {[%emt 0:00:00]} Kg4 {[%emt 0:00:00]} 52. Ke2 {[%emt 0:00:00]} Kxh4 {[%emt 0:00:00]} 53. f3 {[%emt 0:00:00]} f5 {[%emt 0:00:12]} 54. Kf2 {[%emt 0:00:00]} Kh3 {[%emt 0:00:00]} 55. fxe4 {[%emt 0:00:00]} fxe4 {[%emt 0:00:00]} 0-1

[Event "Cellavision Cup 2019"]
[Site "Lund"]
[Date "2019.08.04"]
[Round "7.13"]
[White "Svensson, Mikael"]
[Black "Dourerassou, Jonathan"]
[Result "0-1"]
[ECO "A48"]
[WhiteElo "2147"]
[BlackElo "2477"]
[Annotator "ChessBase"]
[PlyCount "56"]
[EventDate "2019.08.02"]
[EventType "swiss"]
[EventCountry "SWE"]
[SourceTitle "playchess.com"]
[Source "ChessBase"]
[SourceQuality "1"]
[TimeControl "900+5"]

1. d4 {[%emt 0:00:00]} Nf6 {[%emt 0:00:00]} 2. Nf3 {[%emt 0:00:00]} g6 {[%emt 0:00:00]} 3. Nbd2 {[%emt 0:00:00]} d5 {[%emt 0:00:00]} 4. b4 {[%emt 0:00:00]} a5 {[%emt 0:00:00]} 5. b5 {[%emt 0:00:00]} Bg7 {[%emt 0:00:00]} 6. Bb2 {[%emt 0:00:00]} a4 {[%emt 0:00:00]} 7. a3 {[%emt 0:00:00]} Nbd7 {[%emt 0:00:00]} 8. e3 {[%emt 0:00:00]} O-O {[%emt 0:00:00]} 9. c4 {[%emt 0:00:00]} c6 {[%emt 0:00:00]} 10. Rb1 {[%emt 0:00:00]} cxb5 {[%emt 0:00:00]} 11. c5 {[%emt 0:00:00]} e5 {[%emt 0:00:00]} 12. Bxb5 {[%emt 0:00:00]} Qa5 {[%emt 0:00:00]} 13. Ba1 {[%emt 0:00:00]} exd4 {[%emt 0:00:00]} 14. exd4 {[%emt 0:00:00]} Re8+ {[%emt 0:00:00]} 15. Be2 {[%emt 0:00:00]} Ne4 {[%emt 0:00:00]} 16. Rb4 {[%emt 0:00:00]} Nxd2 {[%emt 0:00:00]} 17. Qxd2 {[%emt 0:00:00]} Nxc5 {[%emt 0:00:00]} 18. dxc5 {[%emt 0:00:00]} Bxa1 {[%emt 0:00:00]} 19. O-O {[%emt 0:00:00]} Bf6 {[%emt 0:00:00]} 20. Bb5 {[%emt 0:00:00]} Re4 {[%emt 0:00:00]} 21. Rfb1 {[%emt 0:00:00]} Bf5 {[%emt 0:00:00]} 22. Bd3 {[%emt 0:00:00]} Qxc5 {[%emt 0:00:00]} 23. Rc1 {[%emt 0:00:00]} Qe7 {[%emt 0:00:00]} 24. Bxe4 {[%emt 0:00:00]} dxe4 {[%emt 0:00:00]} 25. Nd4 {[%emt 0:00:00]} Bg5 {[%emt 0:00:00]} 26. Nxf5 {[%emt 0:00:00]} gxf5 {[%emt 0:00:00]} 27. f4 {[%emt 0:06:20]} exf3 {[%emt 0:00:00]} 28. Qe1 {[%emt 0:00:00]} Qe3+ {[%emt 0:00:00]} 0-1

[Event "Cellavision Cup 2019"]
[Site "Lund"]
[Date "2019.08.04"]
[Round "7.14"]
[White "Unmack, Christian"]
[Black "Rostgaard, Tobias Valentin"]
[Result "1-0"]
[ECO "E71"]
[WhiteElo "2133"]
[BlackElo "2390"]
[Annotator "NA"]
[PlyCount "64"]
[EventDate "2019.08.02"]
[EventType "swiss"]
[EventCountry "SWE"]
[SourceTitle "playchess.com"]
[Source "ChessBase"]
[SourceQuality "1"]
[TimeControl "900+5"]

1. d4 {[%emt 0:00:00]} Nf6 {[%emt 0:00:00]} 2. c4 {[%emt 0:00:00]} g6 {[%emt 0:00:00]} 3. Nc3 {[%emt 0:00:00]} Bg7 {[%emt 0:00:00]} 4. e4 {[%emt 0:00:00]} d6 {[%emt 0:00:00]} 5. h3 {[%emt 0:00:00]} O-O {[%emt 0:00:00]} 6. Nf3 {[%emt 0:00:00]} e5 {[%emt 0:00:00]} 7. d5 {[%emt 0:00:00]} a5 {[%emt 0:00:00]} 8. g4 {[%emt 0:00:00]} Na6 {[%emt 0:00:00]} 9. g5 {[%emt 0:00:00]} Nh5 {[%emt 0:00:00]} 10. h4 {[%emt 0:00:00]} f5 {[%emt 0:00:00]} 11. gxf6 {[%emt 0:00:00]} Qxf6 {[%emt 0:00:00]} 12. Be2 {[%emt 0:00:00]} Bg4 {[%emt 0:00:00]} 13. Bg5 {[%emt 0:00:00]} Qf7 {[%emt 0:00:00]} 14. Nh2 {[%emt 0:00:00]} Qxf2+ {[%emt 0:00:00]} 15. Kd2 {[%emt 0:00:00]} Bxe2 {[%emt 0:00:00]} 16. Nxe2 {[%emt 0:00:00]} Ng3 {[%emt 0:00:00]} 17. Ng4 {[%emt 0:00:00]} Nxe4+ {[%emt 0:00:00]} 18. Kc1 {[%emt 0:00:00]} Qf3 {[%emt 0:00:00]} 19. Rg1 {[%emt 0:00:00]} h5 {[%emt 0:00:00]} 20. Nh2 {[%emt 0:00:00]} Qh3 {[%emt 0:00:00]} 21. Nf1 {[%emt 0:00:00]} Nxg5 {[%emt 0:00:00]} 22. hxg5 {[%emt 0:00:00]} Nc5 {[%emt 0:00:00]} 23. Neg3 {[%emt 0:00:00]} h4 {[%emt 0:00:00]} 24. Rh1 {[%emt 0:00:00]} Rxf1 {[%emt 0:00:00]} 25. Rxh3 {[%emt 0:00:00]} Rxd1+ {[%emt 0:00:00]} 26. Kxd1 {[%emt 0:00:00]} hxg3 {[%emt 0:00:00]} 27. Rxg3 {[%emt 0:00:00]} e4 {[%emt 0:00:00]} 28. Kc2 {[%emt 0:00:00]} Rf8 {[%emt 0:00:00]} 29. Rg2 {[%emt 0:00:00]} e3 {[%emt 0:00:00]} 30. Re1 {[%emt 0:00:00]} Rf2+ {[%emt 0:00:00]} 31. Re2 {[%emt 0:00:00]} Bd4 {[%emt 0:00:00]} 32. Kd1 {[%emt 0:00:00]} Nd3 {[%emt 0:00:00]} 1-0

[Event "Cellavision Cup 2019"]
[Site "Lund"]
[Date "2019.08.04"]
[Round "7.15"]
[White "Solozhenkina, Elizaveta"]
[Black "Ask, Josef"]
[Result "0-1"]
[ECO "A05"]
[WhiteElo "2324"]
[BlackElo "2149"]
[Annotator "NA"]
[PlyCount "98"]
[EventDate "2019.08.02"]
[EventType "swiss"]
[EventCountry "SWE"]
[SourceTitle "playchess.com"]
[Source "ChessBase"]
[SourceQuality "1"]
[TimeControl "900+5"]

1. Nf3 {[%emt 0:00:00]} Nf6 {[%emt 0:00:00]} 2. g3 {[%emt 0:00:00]} g6 {[%emt 0:00:00]} 3. d4 {[%emt 0:00:00]} Bg7 {[%emt 0:00:00]} 4. Bg2 {[%emt 0:00:00]} O-O {[%emt 0:00:00]} 5. O-O {[%emt 0:00:00]} d6 {[%emt 0:00:00]} 6. Nc3 {[%emt 0:00:00]} Nbd7 {[%emt 0:00:00]} 7. Re1 {[%emt 0:00:00]} c6 {[%emt 0:00:00]} 8. a4 {[%emt 0:00:00]} e5 {[%emt 0:00:00]} 9. e4 {[%emt 0:00:00]} Qc7 {[%emt 0:00:00]} 10. h3 {[%emt 0:00:00]} Re8 {[%emt 0:00:00]} 11. a5 {[%emt 0:00:00]} Rb8 {[%emt 0:00:00]} 12. Be3 {[%emt 0:00:00]} b5 {[%emt 0:00:00]} 13. axb6 {[%emt 0:00:00]} axb6 {[%emt 0:00:00]} 14. d5 {[%emt 0:00:00]} b5 {[%emt 0:00:00]} 15. dxc6 {[%emt 0:00:00]} Qxc6 {[%emt 0:00:00]} 16. Nd2 {[%emt 0:00:00]} b4 {[%emt 0:00:00]} 17. Nd5 {[%emt 0:00:00]} Nxd5 {[%emt 0:00:00]} 18. exd5 {[%emt 0:00:00]} Qc7 19. Nb3 {[%emt 0:00:00]} Nb6 {[%emt 0:00:00]} 20. Na5 {[%emt 0:00:00]} Nc4 {[%emt 0:00:00]} 21. Nxc4 {[%emt 0:00:00]} Qxc4 {[%emt 0:00:00]} 22. Bf1 {[%emt 0:00:00]} Qc7 {[%emt 0:00:00]} 23. Qd2 {[%emt 0:00:00]} Bf5 {[%emt 0:00:00]} 24. Rec1 Rec8 25. g4 {[%emt 0:00:00]} Bd7 {[%emt 0:00:00]} 26. Ra7 {[%emt 0:00:00]} Rb7 {[%emt 0:00:00]} 27. Rca1 {[%emt 0:00:00]} Rcb8 {[%emt 0:00:00]} 28. Qd3 {[%emt 0:00:22]} f5 {[%emt 0:00:00]} 29. Rxb7 {[%emt 0:01:58]} Rxb7 {[%emt 0:00:00]} 30. Ra8+ {[%emt 0:01:40]} Kf7 {[%emt 0:00:00]} 31. gxf5 {[%emt 0:00:49]} Bxf5 {[%emt 0:00:00]} 32. Qa6 {[%emt 0:00:35]} Bd7 {[%emt 0:00:00]} 33. b3 {[%emt 0:02:21]} Bf6 {[%emt 0:00:00]} 34. Kh2 {[%emt 0:03:07]} e4 {[%emt 0:00:00]} 35. Kg1 {[%emt 0:00:52]} Be5 {[%emt 0:00:00]} 36. Bg5 {[%emt 0:01:25]} Bd4 {[%emt 0:00:00]} 37. Bc4 {[%emt 0:00:00]} Bxh3 {[%emt 0:00:00]} 38. Bb5 {[%emt 0:00:00]} Kg7 {[%emt 0:00:00]} 39. Bc6 {[%emt 0:00:53]} Ra7 {[%emt 0:00:00]} 40. Qc4 {[%emt 0:01:10]} Qb6 {[%emt 0:00:00]} 41. Kh2 {[%emt 0:02:20]} Bf5 {[%emt 0:00:23]} 42. Bd8 {[%emt 0:00:05]} Qc5 {[%emt 0:01:49]} 43. Rxa7+ {[%emt 0:00:10]} Qxa7 {[%emt 0:00:00]} 44. Qxb4 {[%emt 0:00:00]} Bxf2 {[%emt 0:00:17]} 45. Qxd6 {[%emt 0:00:00]} Qe3 {[%emt 0:04:09]} 46. Qf6+ {[%emt 0:00:28]} Kh6 {[%emt 0:00:00]} 47. Qg5+ {[%emt 0:00:09]} Qxg5 {[%emt 0:00:00]} 48. Bxg5+ {[%emt 0:00:00]} Kxg5 {[%emt 0:00:00]} 49. d6 {[%emt 0:00:00]} Kf6 0-1

[Event "Cellavision Cup 2019"]
[Site "Lund"]
[Date "2019.08.04"]
[Round "7.16"]
[White "Ornstein, Axel"]
[Black "Jogstad, Daniel"]
[Result "0-1"]
[ECO "E91"]
[WhiteElo "2311"]
[BlackElo "2154"]
[Annotator "NA"]
[PlyCount "76"]
[EventDate "2019.08.02"]
[EventType "swiss"]
[EventCountry "SWE"]
[SourceTitle "playchess.com"]
[Source "ChessBase"]
[SourceQuality "1"]
[TimeControl "900+5"]

1. Nf3 {[%emt 0:00:00]} d6 {[%emt 0:00:00]} 2. d4 {[%emt 0:00:00]} Nf6 {[%emt 0:00:00]} 3. c4 {[%emt 0:00:00]} g6 {[%emt 0:00:00]} 4. Nc3 {[%emt 0:00:00]} Bg7 {[%emt 0:00:00]} 5. e4 {[%emt 0:00:00]} O-O {[%emt 0:00:00]} 6. Be2 {[%emt 0:00:00]} Na6 {[%emt 0:00:00]} 7. h3 {[%emt 0:00:00]} e5 {[%emt 0:00:00]} 8. dxe5 {[%emt 0:00:00]} dxe5 {[%emt 0:00:00]} 9. Qxd8 {[%emt 0:00:00]} Rxd8 {[%emt 0:00:00]} 10. Bg5 {[%emt 0:00:00]} c6 {[%emt 0:00:00]} 11. O-O {[%emt 0:00:00]} Nc5 {[%emt 0:00:00]} 12. Rfd1 {[%emt 0:00:00]} Re8 {[%emt 0:00:00]} 13. Nd2 {[%emt 0:00:00]} Ne6 {[%emt 0:00:00]} 14. Be3 {[%emt 0:00:00]} Nd4 {[%emt 0:00:00]} 15. Bd3 {[%emt 0:00:00]} Nd7 {[%emt 0:00:00]} 16. b4 {[%emt 0:00:00]} Nf8 {[%emt 0:00:00]} 17. c5 {[%emt 0:00:00]} b6 {[%emt 0:00:00]} 18. cxb6 {[%emt 0:00:00]} axb6 {[%emt 0:00:00]} 19. Nc4 {[%emt 0:00:00]} Be6 {[%emt 0:00:00]} 20. Nxb6 {[%emt 0:00:00]} Ra3 {[%emt 0:00:00]} 21. Rac1 {[%emt 0:00:00]} Rb8 {[%emt 0:00:00]} 22. Nca4 {[%emt 0:00:00]} Bxa2 {[%emt 0:00:00]} 23. Bxd4 {[%emt 0:00:00]} exd4 {[%emt 0:00:00]} 24. Bc4 {[%emt 0:00:00]} Bxc4 {[%emt 0:00:00]} 25. Rxc4 {[%emt 0:00:00]} Rb3 {[%emt 0:00:00]} 26. Rxc6 {[%emt 0:00:00]} Rxb4 {[%emt 0:00:00]} 27. f4 {[%emt 0:00:00]} d3 {[%emt 0:00:00]} 28. Rxd3 {[%emt 0:00:00]} Bd4+ {[%emt 0:00:00]} 29. Rxd4 {[%emt 0:00:00]} Rxd4 {[%emt 0:00:00]} 30. Nc3 {[%emt 0:00:00]} Ne6 {[%emt 0:00:00]} 31. Ncd5 {[%emt 0:00:00]} Kg7 {[%emt 0:00:00]} 32. f5 {[%emt 0:00:00]} gxf5 {[%emt 0:00:00]} 33. exf5 {[%emt 0:00:00]} Nf4 {[%emt 0:00:00]} 34. Ne3 {[%emt 0:00:00]} Rd2 {[%emt 0:00:00]} 35. Kh2 {[%emt 0:00:00]} Re8 {[%emt 0:03:28]} 36. Nbc4 {[%emt 0:00:53]} Re2 {[%emt 0:03:02]} 37. Kg3 {[%emt 0:00:00]} Nd3 {[%emt 0:00:00]} 38. Kf3 {[%emt 0:05:14]} R2xe3+ {[%emt 0:00:00]} 0-1

[Event "Cellavision Cup 2019"]
[Site "Lund"]
[Date "2019.08.04"]
[Round "8.2"]
[White "Malmstig, Erik"]
[Black "Kulaots, Kaido"]
[Result "0-1"]
[ECO "D70"]
[WhiteElo "2335"]
[BlackElo "2560"]
[Annotator "ChessBase"]
[PlyCount "142"]
[EventDate "2019.08.02"]
[EventType "swiss"]
[EventCountry "SWE"]
[SourceTitle "playchess.com"]
[Source "ChessBase"]
[SourceQuality "1"]
[TimeControl "5400+30"]

1. d4 {[%emt 0:00:00]} Nf6 {[%emt 0:00:00]} 2. c4 {[%emt 0:00:00]} g6 {[%emt 0:00:00]} 3. f3 {[%emt 0:00:00]} d5 {[%emt 0:04:16]} 4. cxd5 {[%emt 0:00:14]} Nxd5 {[%emt 0:00:05]} 5. e4 {[%emt 0:00:09]} Nb6 {[%emt 0:00:03]} 6. Nc3 {[%emt 0:00:22]} Bg7 {[%emt 0:00:16]} 7. Be3 {[%emt 0:00:09]} O-O {[%emt 0:00:10]} 8. Qd2 {[%emt 0:00:11]} Nc6 {[%emt 0:00:27]} 9. O-O-O {[%emt 0:00:44]} Qd6 {[%emt 0:00:07]} 10. h4 {[%emt 0:04:40]} Rd8 {[%emt 0:01:34]} 11. e5 {[%emt 0:03:28]} Qb4 {[%emt 0:07:57]} 12. Qf2 {[%emt 0:06:05]} Na4 {[%emt 0:13:08]} 13. a3 {[%emt 0:01:51]} Qb3 {[%emt 0:01:25]} 14. Nxa4 {[%emt 0:09:19]} Qxa4 {[%emt 0:00:06]} 15. Ne2 {[%emt 0:00:33]} Na5 {[%emt 0:08:04]} 16. Nc3 {[%emt 0:01:54]} Bf5 {[%emt 0:00:16]} 17. Bd3 {[%emt 0:04:20]} Bxd3 {[%emt 0:01:11]} 18. Rxd3 {[%emt 0:00:11]} Qc4 {[%emt 0:00:06]} 19. Rdd1 {[%emt 0:01:32]} c5 {[%emt 0:02:42]} 20. dxc5 {[%emt 0:01:04]} Bxe5 {[%emt 0:01:43]} 21. Qc2 {[%emt 0:03:07]} Nb3+ {[%emt 0:13:42]} 22. Kb1 {[%emt 0:00:43]} Nxc5 {[%emt 0:00:43]} 23. Nd5 {[%emt 0:02:51]} Qxc2+ {[%emt 0:00:37]} 24. Kxc2 {[%emt 0:00:06]} Na4 {[%emt 0:10:25]} 25. Nxe7+ {[%emt 0:08:22]} Kf8 {[%emt 0:00:53]} 26. Nd5 {[%emt 0:00:57]} Nxb2 {[%emt 0:04:58]} 27. Bh6+ {[%emt 0:01:26]} Kg8 {[%emt 0:00:03]} 28. Ne7+ {[%emt 0:03:09]} Kh8 {[%emt 0:00:04]} 29. Rxd8+ {[%emt 0:02:23]} Rxd8 {[%emt 0:00:04]} 30. Re1 {[%emt 0:00:46]} Nc4 {[%emt 0:04:47]} 31. Bg5 {[%emt 0:07:19]} f6 {[%emt 0:04:34]} 32. Rxe5 {[%emt 0:01:19]} fxg5 {[%emt 0:00:21]} 33. Rxg5 {[%emt 0:00:26]} Rd7 {[%emt 0:06:23]} 34. Kb3 {[%emt 0:05:18]} Nb6 {[%emt 0:03:26]} 35. Re5 {[%emt 0:01:27]} Kg7 {[%emt 0:00:06]} 36. h5 {[%emt 0:05:11]} Kf6 {[%emt 0:00:46]} 37. hxg6 {[%emt 0:00:18]} hxg6 {[%emt 0:00:16]} 38. Nxg6 {[%emt 0:00:20]} Kxg6 {[%emt 0:00:03]} 39. a4 {[%emt 0:00:40]} Rd3+ {[%emt 0:01:35]} 40. Kc2 {[%emt 0:02:12]} Rd2+ {[%emt 0:05:17]} 41. Kxd2 {[%emt 0:02:54]} Nc4+ {[%emt 0:00:04]} 42. Kc3 {[%emt 0:00:13]} Nxe5 {[%emt 0:00:03]} 43. Kd4 {[%emt 0:01:12]} Nd7 {[%emt 0:00:51]} 44. g4 {[%emt 0:01:50]} Kg5 {[%emt 0:02:00]} 45. a5 {[%emt 0:00:59]} Kf4 {[%emt 0:01:42]} 46. Kd5 {[%emt 0:00:37]} Nb8 {[%emt 0:03:55]} 47. Kd6 {[%emt 0:03:36]} Na6 {[%emt 0:00:04]} 48. Kd5 {[%emt 0:00:58]} Nb4+ {[%emt 0:00:46]} 49. Kc5 {[%emt 0:01:27]} Nd3+ {[%emt 0:00:36]} 50. Kd6 {[%emt 0:00:28]} Kg5 {[%emt 0:00:49]} 51. Kd5 {[%emt 0:01:51]} Kf6 {[%emt 0:00:14]} 52. Kd6 {[%emt 0:00:35]} Kg5 {[%emt 0:01:22]} 53. Kd5 {[%emt 0:00:15]} Nb4+ {[%emt 0:00:48]} 54. Kd6 {[%emt 0:01:15]} Na6 {[%emt 0:00:04]} 55. Kd5 {[%emt 0:00:15]} Kf4 {[%emt 0:00:53]} 56. Kd6 {[%emt 0:00:30]} Kg5 {[%emt 0:00:30]} 57. Kd5 {[%emt 0:00:12]} Nc7+ {[%emt 0:00:32]} 58. Kd6 {[%emt 0:00:31]} Nb5+ {[%emt 0:00:11]} 59. Kc5 {[%emt 0:00:48]} Nc7 {[%emt 0:00:40]} 60. Kd6 {[%emt 0:00:17]} Ne8+ {[%emt 0:00:16]} 61. Kd5 {[%emt 0:00:59]} Kf4 {[%emt 0:00:24]} 62. Ke6 {[%emt 0:00:43]} Kxf3 {[%emt 0:01:03]} 63. g5 {[%emt 0:00:05]} Kf4 {[%emt 0:00:08]} 64. g6 {[%emt 0:00:16]} Kg5 {[%emt 0:00:07]} 65. Kf7 {[%emt 0:02:55]} b5 {[%emt 0:00:29]} 66. Kxe8 {[%emt 0:01:18]} Kxg6 {[%emt 0:00:06]} 67. Kd7 {[%emt 0:00:11]} b4 {[%emt 0:00:03]} 68. Kc6 {[%emt 0:00:05]} b3 {[%emt 0:00:08]} 69. Kb7 {[%emt 0:00:04]} b2 {[%emt 0:00:09]} 70. Kxa7 {[%emt 0:00:06]} b1=Q {[%emt 0:00:09]} 71. a6 {[%emt 0:00:11]} Qb5 {[%emt 0:00:11]} 0-1